bitfinex-derivatives/quotes_BTCF0:USTF0_20260104
["timestamp","ask_amount","ask_price","bid_price","bid_amount"]
[1767511502535,0.02596894,91347.0,91339.0,0.01963677]
[1767511502729,0.104072,91348.0,91339.0,0.01963677]
[1767511502935,0.0259684,91347.0,91335.0,0.00982822]
[1767511503125,0.09312,91348.0,91335.0,0.00982822]
[1767511503324,0.04751265,91345.0,91335.0,0.00982822]
[1767511503525,0.09312,91348.0,91335.0,0.00982822]
[1767511503726,0.02596743,91347.0,91335.0,0.00982822]
[1767511503926,0.010952,91344.0,91335.0,0.00982822]
[1767511504126,0.09312,91348.0,91332.0,0.0001642]
[1767511504327,0.010952,91345.0,91332.0,0.0001642]
[1767511504528,0.09312,91348.0,91332.0,0.0111172]
[1767511504732,0.010952,91346.0,91332.0,0.0001642]
[1767511505531,0.010952,91345.0,91332.0,0.0001642]
[1767511506138,0.104072,91348.0,91334.0,0.00982822]
[1767511506437,0.010952,91348.0,91337.0,0.00982822]
[1767511506632,0.010951,91349.0,91339.0,0.00982822]
[1767511506837,0.02593617,91348.0,91339.0,0.00982822]
[1767511507037,0.010952,91347.0,91334.0,0.01963677]
[1767511507339,0.010952,91347.0,91335.0,0.00982822]
[1767511507741,0.04767685,91350.0,91335.0,0.00982822]
[1767511507924,0.02593677,91349.0,91335.0,0.00982822]
[1767511508127,0.02593677,91348.0,91335.0,0.00982822]
[1767511508327,0.02593677,91347.0,91335.0,0.00982822]
[1767511508527,0.04767685,91350.0,91335.0,0.00982822]
[1767511508827,0.010952,91347.0,91335.0,0.00982822]
[1767511510132,0.04767685,91350.0,91335.0,0.00982822]
[1767511510332,0.010952,91345.0,91335.0,0.00982822]
[1767511511747,0.010952,91344.0,91332.0,0.0001642]
[1767511512741,0.04767685,91350.0,91332.0,0.0001642]
[1767511512742,0.010953,91336.0,91332.0,0.0001642]
[1767511512937,0.05683951,91342.0,91321.0,0.00982822]
[1767511513253,0.010953,91337.0,91322.0,0.00982822]
[1767511513543,0.010953,91337.0,91323.0,0.00982822]
[1767511514143,0.010953,91337.0,91322.0,0.00980855]
[1767511514144,0.00932686,91337.0,91319.0,0.00219014]
[1767511514328,0.010954,91331.0,91319.0,0.00219014]
[1767511514534,0.010954,91329.0,91310.0,0.00982822]
[1767511514735,0.04751265,91320.0,91307.0,0.09312]
[1767511514946,0.02028186,91319.0,91299.0,0.00982822]
[1767511515243,0.04751265,91320.0,91297.0,9.522e-05]
[1767511515244,0.04751265,91320.0,91305.0,0.00982822]
[1767511515841,0.04751265,91320.0,91306.0,0.01426]
[1767511516043,0.04751265,91320.0,91308.0,0.00982822]
[1767511516238,0.010955,91321.0,91308.0,0.00982822]
[1767511516440,0.010955,91319.0,91306.0,0.01426]
[1767511517243,0.00932686,91322.0,91300.0,0.09312]
[1767511517431,0.010956,91313.0,91300.0,0.09312]
[1767511517931,0.0932842,91329.0,91297.0,9.522e-05]
[1767511517932,0.010956,91310.0,91297.0,9.522e-05]
[1767511518430,0.010956,91310.0,91298.0,0.00764]
[1767511519637,0.02028286,91310.0,91298.0,0.00764]
[1767511519840,0.010956,91311.0,91298.0,0.00764]
[1767511520341,0.010956,91308.0,91298.0,0.00764]
[1767511520538,0.010956,91308.0,91297.0,9.522e-05]
[1767511521143,0.00932686,91311.0,91297.0,9.522e-05]
[1767511521842,0.010957,91307.0,91298.0,0.00764]
[1767511522549,0.010957,91304.0,91298.0,0.00764]
[1767511522740,0.010957,91304.0,91297.0,9.522e-05]
[1767511524456,0.010957,91302.0,91297.0,9.522e-05]
[1767511524752,0.010957,91302.0,91287.0,0.00982822]
[1767511525150,0.010958,91297.0,91282.0,0.00982822]
[1767511525447,0.010958,91299.0,91283.0,0.00982822]
[1767511525752,0.010958,91297.0,91283.0,0.00982822]
[1767511525944,9.522e-05,91298.0,91282.0,0.09312]
[1767511526443,0.09312,91307.0,91296.0,0.00982822]
[1767511526951,0.00016429,91310.0,91298.0,0.01963677]
[1767511527153,0.09312,91315.0,91304.0,0.00982822]
[1767511527342,0.09312,91315.0,91306.0,0.00982822]
[1767511527544,0.09312,91315.0,91307.0,0.01963677]
[1767511527944,0.010955,91321.0,91309.0,0.00982822]
[1767511528247,0.010955,91321.0,91293.0,0.09312]
[1767511528248,0.010955,91321.0,91310.0,0.01963677]
[1767511529250,0.00016429,91324.0,91310.0,0.01963677]
[1767511529746,0.00016429,91324.0,91312.0,0.01963677]
[1767511529941,0.010953,91333.0,91317.0,0.00982822]
[1767511530146,0.09316,91335.0,91319.0,0.0096123]
[1767511530348,0.010953,91337.0,91320.0,0.0096123]
[1767511530651,0.010953,91335.0,91320.0,0.0096123]
[1767511531157,0.01112194,91335.0,91320.0,0.0096123]
[1767511531547,0.010953,91335.0,91321.0,0.0096123]
[1767511531744,0.104113,91335.0,91323.0,0.0096123]
[1767511532259,0.09316,91335.0,91325.0,0.0096123]
[1767511532850,0.00016429,91337.0,91327.0,0.01907814]
[1767511533055,0.104112,91343.0,91330.0,0.01907814]
[1767511533255,0.010952,91341.0,91330.0,0.0091356]
[1767511533554,0.010952,91341.0,91326.0,0.00994254]
[1767511534668,0.010952,91341.0,91326.0,0.01907814]
[1767511535259,0.010953,91339.0,91326.0,0.0091356]
[1767511535554,0.010953,91339.0,91326.0,0.01907814]
[1767511535757,0.010953,91339.0,91327.0,0.0091356]
[1767511536561,0.010952,91342.0,91329.0,0.0091356]
[1767511536760,0.02590787,91341.0,91329.0,0.0091356]
[1767511536959,0.010953,91340.0,91329.0,0.0091356]
[1767511538755,0.010953,91338.0,91329.0,0.0091356]
[1767511539563,0.00016429,91343.0,91329.0,0.0091356]
[1767511539863,0.02591723,91342.0,91329.0,0.0091356]
[1767511540062,0.02591723,91341.0,91329.0,0.0091356]
[1767511540251,0.00016429,91343.0,91329.0,0.0091356]
[1767511540455,0.02592051,91342.0,91329.0,0.0091356]
[1767511540656,0.010953,91337.0,91329.0,0.0091356]
[1767511542865,0.010953,91335.0,91329.0,0.0091356]
[1767511543759,0.010953,91335.0,91324.0,0.00016429]
[1767511543964,0.00058509,91341.0,91324.0,0.00016429]
[1767511544159,0.010954,91332.0,91324.0,0.00016429]
[1767511547169,0.010954,91331.0,91324.0,0.00016429]
[1767511548061,0.00124925,91341.0,91324.0,0.00016429]
[1767511548257,0.01224753,91339.0,91324.0,0.00016429]
[1767511548458,0.010954,91331.0,91324.0,0.00016429]
[1767511550467,0.010954,91329.0,91324.0,0.00016429]
[1767511550866,0.00084966,91324.0,91308.0,0.09312]
[1767511551170,0.010954,91325.0,91311.0,0.00994254]
[1767511551464,0.010954,91325.0,91312.0,0.01907814]
[1767511552358,0.010954,91325.0,91312.0,0.03003414]
[1767511553568,0.00084966,91333.0,91316.0,0.010955]
[1767511553764,0.010954,91329.0,91316.0,0.010955]
[1767511554667,0.010954,91329.0,91315.0,0.00994254]
[1767511555371,0.010954,91329.0,91315.0,0.0091356]
[1767511555672,0.010954,91329.0,91314.0,0.010956]
[1767511555874,0.010954,91329.0,91316.0,0.010955]
[1767511557175,0.010954,91328.0,91314.0,0.0091356]
[1767511558471,0.010954,91328.0,91315.0,0.010955]
[1767511558879,0.010954,91328.0,91314.0,0.0091356]
[1767511560883,0.010954,91326.0,91315.0,0.00912938]
[1767511561179,0.010954,91329.0,91317.0,0.00931266]
[1767511561375,0.02601112,91328.0,91317.0,0.01844204]
[1767511561583,0.010954,91329.0,91317.0,0.01844204]
[1767511561781,0.02601115,91328.0,91313.0,0.00912938]
[1767511561976,0.00093898,91332.0,91313.0,0.01844204]
[1767511562183,0.010954,91326.0,91314.0,0.00931266]
[1767511563581,0.010954,91329.0,91316.0,0.00931266]
[1767511563781,0.02585166,91328.0,91316.0,0.00931266]
[1767511563981,0.010954,91329.0,91317.0,0.00931266]
[1767511568780,0.010954,91332.0,91317.0,0.00931266]
[1767511568976,0.02585326,91331.0,91318.0,0.01844204]
[1767511569190,0.02585326,91330.0,91319.0,0.00931266]
[1767511569390,0.010953,91336.0,91323.0,0.00931266]
[1767511569581,0.02585098,91335.0,91325.0,0.00931266]
[1767511569781,0.03680398,91334.0,91326.0,0.00912938]
[1767511569984,0.02585098,91333.0,91326.0,0.00912938]
[1767511570291,0.02585098,91332.0,91325.0,0.00931266]
[1767511570486,0.02585098,91331.0,91325.0,0.00931266]
[1767511570688,0.0008434,91342.0,91325.0,0.00931266]
[1767511570888,0.02585116,91341.0,91325.0,0.00931266]
[1767511571089,0.02585116,91340.0,91325.0,0.00931266]
[1767511571285,0.02674778,91339.0,91319.0,0.00931266]
[1767511571491,0.010953,91333.0,91319.0,0.02026766]
[1767511571687,0.02585116,91332.0,91319.0,0.02026766]
[1767511575493,0.02585116,91332.0,91319.0,0.02939704]
[1767511576890,0.010954,91329.0,91319.0,0.00931266]
[1767511577397,0.010954,91328.0,91319.0,0.00931266]
[1767511578195,0.010954,91330.0,91319.0,0.00931266]
[1767511578493,0.05849388,91330.0,91319.0,0.00931266]
[1767511578686,0.02680168,91329.0,91316.0,0.09312]
[1767511578886,0.010954,91325.0,91316.0,0.09312]
[1767511579596,0.010955,91323.0,91316.0,0.09312]
[1767511580495,0.010955,91322.0,91316.0,0.09312]
[1767511580998,0.010954,91325.0,91316.0,0.09312]
[1767511582189,0.010954,91328.0,91316.0,0.09312]
[1767511582891,0.04753988,91330.0,91316.0,0.09312]
[1767511583101,0.02576893,91329.0,91316.0,0.09312]
[1767511583295,0.010954,91325.0,91316.0,0.09312]
[1767511583689,0.010955,91324.0,91316.0,0.09312]
[1767511585898,0.04753988,91326.0,91312.0,0.00931266]
[1767511586098,0.04753988,91322.0,91310.0,0.010956]
[1767511587401,0.010955,91321.0,91309.0,0.09328429]
[1767511587703,0.04753988,91320.0,91309.0,0.09328429]
[1767511588299,0.05849488,91320.0,91309.0,0.09328429]
[1767511590693,0.04753988,91320.0,91310.0,0.010956]
[1767511591805,0.04753988,91320.0,91309.0,0.09328429]
[1767511592106,0.04753988,91320.0,91312.0,0.010956]
[1767511593306,0.04753988,91320.0,91315.0,0.010956]
[1767511594210,0.04753988,91320.0,91313.0,0.010956]
[1767511594821,0.04753988,91323.0,91314.0,0.010956]
[1767511595120,0.04770417,91324.0,91314.0,0.010956]
[1767511597920,0.04770417,91324.0,91312.0,0.010956]
[1767511598225,0.04753988,91322.0,91312.0,0.010956]
[1767511599425,0.01111929,91324.0,91312.0,0.010956]
[1767511599628,0.01184048,91320.0,91309.0,0.00016429]
[1767511599923,0.04753988,91322.0,91309.0,0.00016429]
[1767511599924,0.010956,91314.0,91309.0,0.00016429]
[1767511600120,0.00088548,91318.0,91309.0,0.00016429]
[1767511600428,0.00088519,91306.0,91292.0,0.09312]
[1767511600627,0.010957,91301.0,91286.0,0.00969189]
[1767511600923,0.00083531,91295.0,91280.0,0.09312]
[1767511601129,0.04753988,91290.0,91280.0,0.10408]
[1767511601629,0.04753988,91290.0,91282.0,0.010959]
[1767511601924,0.00016429,91294.0,91280.0,0.09312]
[1767511603418,0.04753988,91290.0,91280.0,0.09312]
[1767511604112,0.00016429,91294.0,91280.0,0.01096]
[1767511604313,0.00016429,91294.0,91285.0,0.010959]
[1767511607012,0.00016429,91294.0,91286.0,0.00919808]
[1767511607328,0.09316,91305.0,91291.0,0.010958]
[1767511607526,0.04753988,91301.0,91291.0,0.010958]
[1767511607728,0.04753988,91301.0,91289.0,0.01888997]
[1767511610715,0.04753988,91301.0,91289.0,0.00969189]
[1767511611129,0.04753988,91301.0,91291.0,0.00969189]
[1767511611429,0.04753988,91301.0,91276.0,0.00016429]
[1767511611430,0.09316,91309.0,91294.0,0.00969189]
[1767511611620,0.09316,91309.0,91294.0,0.02064989]
[1767511611819,0.09316,91309.0,91294.0,0.02984797]
[1767511612221,0.05849588,91310.0,91295.0,0.01888997]
[1767511612421,0.05849588,91310.0,91296.0,0.00969189]
[1767511612931,0.05849588,91310.0,91297.0,0.00969189]
[1767511613625,0.010956,91308.0,91297.0,0.00969189]
[1767511615221,0.04753988,91310.0,91297.0,0.00969189]
[1767511615524,0.010956,91308.0,91297.0,0.00969189]
[1767511618228,0.00016429,91311.0,91292.0,0.00016429]
[1767511618229,8.932e-05,91304.0,91292.0,0.00016429]
[1767511618431,0.010958,91297.0,91283.0,0.09316]
[1767511618733,8.932e-05,91299.0,91283.0,0.09316]
[1767511618928,0.04753988,91293.0,91283.0,0.09316]
[1767511622036,0.05849788,91293.0,91283.0,0.09316]
[1767511623736,0.04753988,91293.0,91283.0,0.09316]
[1767511623935,7.181e-05,91300.0,91283.0,0.104119]
[1767511624236,0.04761169,91300.0,91283.0,0.104119]
[1767511625140,0.010957,91299.0,91284.0,0.010959]
[1767511625339,0.010957,91299.0,91285.0,0.010959]
[1767511625737,0.010957,91299.0,91283.0,0.09316]
[1767511625738,0.010957,91302.0,91284.0,0.0094888]
[1767511625930,0.04753988,91300.0,91290.0,0.010959]
[1767511626742,0.04753988,91300.0,91288.0,0.0204478]
[1767511627238,0.010957,91302.0,91290.0,0.010959]
[1767511627539,0.04753988,91300.0,91290.0,0.010959]
[1767511628735,5.232e-05,91308.0,91283.0,0.09316]
[1767511628736,0.010957,91307.0,91293.0,0.0094888]
[1767511628937,0.04753988,91303.0,91294.0,0.0094888]
[1767511630339,0.02610574,91302.0,91294.0,0.0094888]
[1767511630641,0.02610574,91301.0,91290.0,0.010959]
[1767511630836,0.04753988,91300.0,91290.0,0.010959]
[1767511634748,0.04753988,91300.0,91289.0,0.0094888]
[1767511637753,0.04753988,91300.0,91289.0,0.0204478]
[1767511639246,0.04753988,91300.0,91290.0,0.010958]
[1767511639548,0.04753988,91300.0,91291.0,0.010958]
[1767511639849,0.010957,91306.0,91290.0,0.00941515]
[1767511640049,0.02625253,91305.0,91297.0,0.0204468]
[1767511640243,0.05849588,91310.0,91297.0,0.0204468]
[1767511640445,0.05849588,91310.0,91286.0,0.010959]
[1767511640446,0.04753988,91310.0,91298.0,0.01890395]
[1767511640749,0.09316,91323.0,91309.0,0.010956]
[1767511640947,0.025004,91327.0,91311.0,0.02037115]
[1767511641137,0.010954,91326.0,91312.0,0.0094888]
[1767511641647,0.010954,91324.0,91312.0,0.0094888]
[1767511642036,0.00022117,91326.0,91310.0,0.00016429]
[1767511642242,0.00022117,91323.0,91310.0,0.00016429]
[1767511642651,0.010955,91320.0,91310.0,0.00016429]
[1767511642950,0.00034952,91322.0,91310.0,0.00016429]
[1767511643248,0.010955,91321.0,91310.0,0.00016429]
[1767511643450,0.00034952,91322.0,91310.0,0.00016429]
[1767511643850,0.01130452,91322.0,91310.0,0.00016429]
[1767511644452,0.00034952,91322.0,91310.0,0.00016429]
[1767511644653,0.00034952,91322.0,91310.0,0.01112029]
[1767511645245,0.00038075,91321.0,91297.0,0.01890395]
[1767511645450,0.00038075,91319.0,91307.0,0.010956]
[1767511645742,0.00038075,91323.0,91307.0,0.010956]
[1767511646148,0.010955,91321.0,91307.0,0.010956]
[1767511647852,0.010955,91319.0,91306.0,0.00965309]
[1767511648456,0.010955,91319.0,91306.0,0.02061009]
[1767511648852,0.010955,91322.0,91306.0,0.02061009]
[1767511649258,0.010955,91320.0,91306.0,0.02061009]
[1767511650658,0.01404,91319.0,91306.0,0.02061009]
[1767511650860,0.01404,91319.0,91306.0,0.00965309]
[1767511650861,0.010955,91318.0,91306.0,0.00965309]
[1767511651763,0.01404,91319.0,91306.0,0.00965309]
[1767511651954,0.010955,91316.0,91306.0,0.00965309]
[1767511652154,0.01404,91319.0,91306.0,0.00965309]
[1767511653364,0.024995,91319.0,91306.0,0.00965309]
[1767511654561,0.010955,91317.0,91306.0,0.00965309]
[1767511655253,0.010956,91316.0,91306.0,0.00965309]
[1767511658864,0.010956,91314.0,91306.0,0.00965309]
[1767511659461,0.024995,91319.0,91306.0,0.00965309]
[1767511659672,0.01404,91319.0,91310.0,0.02012196]
[1767511659967,0.010954,91325.0,91314.0,0.00916596]
[1767511660355,2.9e-07,91328.0,91323.0,0.010955]
[1767511660557,0.010953,91333.0,91324.0,0.00916596]
[1767511660765,0.010953,91335.0,91324.0,0.00916596]
[1767511661270,0.00948379,91338.0,91324.0,0.00916596]
[1767511661569,0.010953,91333.0,91319.0,0.02012096]
[1767511662958,0.010953,91333.0,91321.0,0.02012096]
[1767511663666,0.00948379,91336.0,91323.0,0.010955]
[1767511663866,0.02605366,91335.0,91323.0,0.010955]
[1767511664068,0.02043679,91336.0,91323.0,0.010955]
[1767511664263,0.010953,91334.0,91321.0,0.00916596]
[1767511665967,0.010953,91334.0,91321.0,0.02012096]
[1767511666165,0.010953,91334.0,91321.0,0.010955]
[1767511666370,0.00948379,91330.0,91318.0,0.010955]
[1767511666557,0.00948379,91334.0,91317.0,0.09332429]
[1767511666870,0.010953,91332.0,91319.0,0.010955]
[1767511667070,0.02043679,91334.0,91321.0,0.010955]
[1767511669270,0.0258353,91333.0,91319.0,0.00916596]
[1767511669472,0.00948379,91334.0,91319.0,0.00916596]
[1767511669776,0.02583532,91333.0,91319.0,0.00916596]
[1767511669965,0.00948379,91337.0,91319.0,0.00916596]
[1767511670166,0.00948379,91335.0,91319.0,0.00916596]
[1767511670470,0.010954,91331.0,91319.0,0.00916596]
[1767511671874,0.010953,91333.0,91320.0,0.010955]
[1767511672074,0.02584241,91332.0,91320.0,0.010955]
[1767511672376,0.010953,91333.0,91320.0,0.010955]
[1767511672575,0.02584141,91332.0,91320.0,0.010955]
[1767511672764,0.010953,91333.0,91320.0,0.010955]
[1767511672964,0.0258414,91332.0,91320.0,0.010955]
[1767511673165,0.02043679,91333.0,91320.0,0.010955]
[1767511673479,0.02584218,91332.0,91320.0,0.010955]
[1767511673775,0.010954,91332.0,91319.0,0.00916596]
[1767511678681,0.00948379,91325.0,91315.0,0.010956]
[1767511679068,0.0045425,91333.0,91317.0,0.010955]
[1767511679069,0.02043779,91329.0,91317.0,0.010955]
[1767511679782,0.010954,91328.0,91314.0,0.01112029]
[1767511680475,0.00948379,91329.0,91314.0,0.00016429]
[1767511680778,0.010954,91325.0,91314.0,0.00016429]
[1767511681477,0.00948379,91329.0,91314.0,0.00016429]
[1767511681678,0.010954,91327.0,91315.0,0.010955]
[1767511681878,0.010954,91327.0,91314.0,0.00016429]
[1767511682481,0.010954,91326.0,91314.0,0.01112029]
[1767511686084,0.02043779,91329.0,91316.0,0.010955]
[1767511687781,0.02043779,91329.0,91314.0,0.00986751]
[1767511688483,0.010954,91327.0,91314.0,0.00986751]
[1767511689880,0.16247245,91343.0,91321.0,0.010955]
[1767511689881,0.010953,91334.0,91321.0,0.010955]
[1767511690079,0.02587229,91333.0,91323.0,0.010955]
[1767511690279,0.02587229,91332.0,91323.0,0.010955]
[1767511690584,0.02587229,91331.0,91323.0,0.010955]
[1767511690784,0.02587229,91330.0,91323.0,0.010955]
[1767511690986,0.010953,91335.0,91323.0,0.010955]
[1767511691185,0.02588394,91334.0,91323.0,0.010955]
[1767511691385,0.02588394,91333.0,91321.0,0.00970322]
[1767511691584,0.02588394,91332.0,91321.0,0.00970322]
[1767511691882,0.02588394,91331.0,91321.0,0.00970322]
[1767511692084,0.010953,91335.0,91321.0,0.02065822]
[1767511692284,0.02588425,91334.0,91321.0,0.02065822]
[1767511692484,0.02588425,91333.0,91321.0,0.02065822]
[1767511692682,0.010952,91342.0,91330.0,0.02065722]
[1767511692883,0.010952,91344.0,91330.0,0.02065722]
[1767511693688,0.010952,91343.0,91330.0,0.02065722]
[1767511693883,0.010952,91343.0,91330.0,0.00970322]
[1767511694083,0.010952,91342.0,91330.0,0.00970322]
[1767511694284,0.00918432,91346.0,91326.0,0.02043434]
[1767511694486,0.010952,91342.0,91328.0,0.010954]
[1767511694986,0.010952,91342.0,91326.0,0.01918356]
[1767511696391,0.010952,91342.0,91329.0,0.010954]
[1767511697980,0.010953,91341.0,91327.0,0.010954]
[1767511698182,0.010953,91341.0,91326.0,0.01918356]
[1767511699383,0.010953,91341.0,91328.0,0.010954]
[1767511700076,0.010952,91344.0,91326.0,0.01918356]
[1767511700281,0.010952,91343.0,91329.0,0.010954]
[1767511700485,0.04752988,91340.0,91329.0,0.010954]
[1767511702494,0.04752988,91340.0,91330.0,0.010954]
[1767511703581,0.09328429,91348.0,91330.0,0.010954]
[1767511703781,0.09328429,91348.0,91330.0,0.03013756]
[1767511703991,0.10246861,91348.0,91330.0,0.03013756]
[1767511704291,0.00918432,91347.0,91330.0,0.02065722]
[1767511704790,0.04752988,91340.0,91330.0,0.02065722]
[1767511705784,0.010952,91343.0,91330.0,0.02065722]
[1767511705990,0.04752988,91340.0,91330.0,0.02065722]
[1767511710499,0.04752988,91340.0,91332.0,0.010953]
[1767511710694,0.04752988,91340.0,91330.0,0.02065722]
[1767511711095,0.04752988,91340.0,91331.0,0.010954]
[1767511714799,0.010952,91343.0,91331.0,0.010954]
[1767511715001,0.02571479,91342.0,91331.0,0.010954]
[1767511715201,0.02571479,91341.0,91331.0,0.010954]
[1767511715402,0.0205953,91345.0,91331.0,0.010954]
[1767511715602,0.010952,91343.0,91331.0,0.010954]
[1767511715792,0.04752988,91341.0,91329.0,0.010954]
[1767511717001,0.04752988,91341.0,91330.0,0.010954]
[1767511717203,0.04752988,91341.0,91331.0,0.010954]
[1767511717590,0.0205953,91345.0,91326.0,0.00948034]
[1767511717790,0.07842879,91363.0,91341.0,0.010952]
[1767511717791,0.010951,91353.0,91341.0,0.010952]
[1767511717990,0.010951,91357.0,91343.0,0.010952]
[1767511718306,0.02572396,91356.0,91345.0,0.010952]
[1767511718496,0.00944447,91358.0,91345.0,0.010952]
[1767511718689,0.02572015,91357.0,91347.0,0.010952]
[1767511718895,0.00944447,91358.0,91347.0,0.010952]
[1767511719102,0.02571955,91357.0,91348.0,0.010951]
[1767511719308,0.04752988,91360.0,91348.0,0.010951]
[1767511719495,0.02571606,91359.0,91348.0,0.010951]
[1767511719803,0.04752988,91360.0,91350.0,0.010951]
[1767511720006,0.04752988,91360.0,91348.0,0.010952]
[1767511720997,0.01095,91361.0,91348.0,0.010952]
[1767511721597,0.01095,91363.0,91348.0,0.010951]
[1767511721797,0.0257077,91362.0,91348.0,0.010951]
[1767511722100,0.01095,91363.0,91348.0,0.010951]
[1767511722405,0.025705,91362.0,91348.0,0.010951]
[1767511722606,0.01095,91363.0,91348.0,0.010951]
[1767511722907,0.025705,91362.0,91348.0,0.010951]
[1767511723108,0.01095,91363.0,91348.0,0.010951]
[1767511723606,0.01095,91362.0,91348.0,0.104071]
[1767511724700,0.01095,91362.0,91348.0,0.09312]
[1767511725308,0.01095,91362.0,91348.0,0.104071]
[1767511727708,0.0001642,91364.0,91348.0,0.09312]
[1767511727899,0.02541012,91363.0,91348.0,0.09312]
[1767511728100,0.0001642,91364.0,91348.0,0.09312]
[1767511728301,0.01095,91362.0,91348.0,0.104072]
[1767511728703,0.01095,91360.0,91348.0,0.104072]
[1767511729402,0.01095,91362.0,91348.0,0.104072]
[1767511729918,0.04752988,91360.0,91348.0,0.104072]
[1767511732405,0.010951,91354.0,91343.0,0.0001642]
[1767511732605,0.0096433,91356.0,91344.0,0.09312]
[1767511732808,0.05697435,91360.0,91344.0,0.09312]
[1767511733006,0.01095,91358.0,91344.0,0.09312]
[1767511734410,0.01095,91358.0,91344.0,0.104072]
[1767511735702,0.05697435,91360.0,91344.0,0.09312]
[1767511736309,0.05697435,91360.0,91344.0,0.104072]
[1767511736310,0.01095,91358.0,91344.0,0.104072]
[1767511736510,0.010951,91356.0,91344.0,0.09312]
[1767511737312,0.01095,91359.0,91345.0,0.010952]
[1767511738917,0.01095,91358.0,91345.0,0.010952]
[1767511739515,0.01095,91358.0,91344.0,0.09312]
[1767511739916,0.01095,91359.0,91346.0,0.010952]
[1767511740514,0.01875156,91358.0,91345.0,0.010952]
[1767511740709,0.01095,91358.0,91344.0,0.09312]
[1767511741414,0.01095,91358.0,91345.0,0.010952]
[1767511741602,0.01095,91358.0,91344.0,0.09312]
[1767511742418,0.010951,91356.0,91344.0,0.09312]
[1767511744517,0.010951,91356.0,91344.0,0.10308523]
[1767511745717,0.04752988,91360.0,91344.0,0.10308523]
[1767511745915,0.04752988,91360.0,91344.0,0.09312]
[1767511746315,0.010951,91357.0,91344.0,0.09312]
[1767511746820,0.010951,91355.0,91344.0,0.09312]
[1767511748326,0.010951,91355.0,91344.0,0.10308523]
[1767511749921,0.010951,91355.0,91344.0,0.00996523]
[1767511750127,0.010951,91355.0,91345.0,0.09312]
[1767511750521,0.010951,91357.0,91345.0,0.09312]
[1767511750720,0.0254881,91356.0,91345.0,0.09312]
[1767511750920,0.010951,91356.0,91345.0,0.10308523]
[1767511752428,0.02549005,91355.0,91345.0,0.10308523]
[1767511752612,0.010951,91356.0,91345.0,0.10308523]
[1767511752814,0.02549005,91355.0,91345.0,0.10308523]
[1767511753014,0.010951,91356.0,91345.0,0.10308523]
[1767511753212,0.010951,91354.0,91345.0,0.10308523]
[1767511755520,0.04752988,91355.0,91345.0,0.09312]
[1767511755831,0.010951,91350.0,91345.0,0.09312]
[1767511756125,0.010951,91353.0,91345.0,0.09312]
[1767511758027,0.010951,91354.0,91345.0,0.09312]
[1767511760014,0.010951,91356.0,91345.0,0.10308523]
[1767511760230,0.010951,91355.0,91345.0,0.10308523]
[1767511760530,0.010951,91355.0,91345.0,0.09312]
[1767511763428,0.010951,91355.0,91345.0,0.10308523]
[1767511768730,0.010951,91354.0,91345.0,0.10308523]
[1767511769831,0.010951,91354.0,91345.0,0.00996523]
[1767511770623,0.010951,91353.0,91343.0,0.0001642]
[1767511770825,0.010951,91353.0,91343.0,0.00947225]
[1767511771521,2e-07,91364.0,91345.0,0.0186673]
[1767511771721,2e-07,91364.0,91343.0,0.0001642]
[1767511772728,2e-07,91364.0,91351.0,0.010951]
[1767511773032,2e-07,91364.0,91352.0,0.09312]
[1767511773633,2e-07,91364.0,91353.0,0.00991948]
[1767511775326,2e-07,91364.0,91355.0,0.00991948]
[1767511775531,2e-07,91364.0,91355.0,0.01971129]
[1767511775734,2e-07,91364.0,91356.0,0.02087048]
[1767511775933,2e-07,91364.0,91357.0,0.00991948]
[1767511776829,2e-07,91364.0,91358.0,0.01095]
[1767511782744,2e-07,91364.0,91355.0,0.010951]
[1767511783333,2e-07,91364.0,91355.0,0.02087048]
[1767511783544,2e-07,91364.0,91357.0,0.01095]
[1767511784343,2e-07,91364.0,91356.0,0.010951]
[1767511785930,2e-07,91364.0,91358.0,0.01095]
[1767511786243,2e-07,91364.0,91355.0,0.02087048]
[1767511787137,2e-07,91364.0,91356.0,0.00991948]
[1767511789348,2e-07,91364.0,91356.0,0.02087048]
[1767511790649,2e-07,91364.0,91357.0,0.01095]
[1767511792344,2e-07,91364.0,91357.0,0.02086948]
[1767511793645,2e-07,91364.0,91359.0,0.01095]
[1767511794047,2e-07,91364.0,91358.0,0.00991948]
[1767511794548,2e-07,91364.0,91359.0,0.01095]
[1767511794841,0.010949,91374.0,91359.0,0.00991948]
[1767511795038,0.02537672,91373.0,91359.0,0.00991948]
[1767511795244,0.010949,91374.0,91359.0,0.00991948]
[1767511795444,0.02537894,91373.0,91359.0,0.00991948]
[1767511795644,0.010949,91374.0,91359.0,0.00991948]
[1767511795840,0.02537894,91373.0,91359.0,0.00991948]
[1767511796039,0.010949,91374.0,91359.0,0.00991948]
[1767511796248,0.02537894,91373.0,91359.0,0.00991948]
[1767511796447,0.010949,91374.0,91362.0,0.01095]
[1767511796638,0.02538158,91373.0,91362.0,0.01095]
[1767511796840,0.010949,91374.0,91362.0,0.01095]
[1767511797038,0.02538158,91373.0,91362.0,0.01095]
[1767511797240,0.010949,91374.0,91360.0,0.01095]
[1767511797445,0.02538476,91373.0,91360.0,0.01095]
[1767511797748,0.010949,91374.0,91360.0,0.02086948]
[1767511797948,0.02538476,91373.0,91360.0,0.02086948]
[1767511798250,0.010949,91374.0,91360.0,0.02086948]
[1767511798450,0.02538864,91373.0,91360.0,0.02086948]
[1767511798649,0.010949,91373.0,91360.0,0.02086948]
[1767511799351,0.02539353,91372.0,91360.0,0.02086948]
[1767511799649,0.010949,91373.0,91360.0,0.02086948]
[1767511799850,0.03634253,91372.0,91360.0,0.02086948]
[1767511800051,0.010949,91372.0,91360.0,0.00991948]
[1767511800452,0.010949,91372.0,91360.0,0.02086948]
[1767511800658,0.010949,91372.0,91361.0,0.00995061]
[1767511801448,0.0001642,91376.0,91363.0,0.00995061]
[1767511801449,0.010948,91375.0,91363.0,0.00995061]
[1767511801750,0.010948,91375.0,91364.0,0.00835676]
[1767511801945,0.0001642,91376.0,91364.0,0.00835676]
[1767511802145,0.0001642,91376.0,91363.0,0.00930298]
[1767511802449,0.0001642,91376.0,91363.0,0.01765974]
[1767511802951,0.0001642,91376.0,91364.0,0.00835676]
[1767511803347,0.010948,91375.0,91364.0,0.00835676]
[1767511803943,0.0001642,91376.0,91366.0,0.01764732]
[1767511804140,0.0111122,91376.0,91366.0,0.01764732]
[1767511804340,0.010948,91375.0,91366.0,0.00930298]